[Event "*** SCC Grand Prix: Titled Tuesday Blitz"]
[Site "Chess.com"]
[Date "2020.07.14"]
[Round "7"]
[White "thedjoker98"]
[Black "wannabe2700"]
[Result "1/2-1/2"]
[WhiteElo "2519"]
[BlackElo "2659"]
[TimeControl "180+1"]
[EndTime "11:21:49 PDT"]
[Termination "Game drawn by repetition"]

1. d4 {[%clk 0:03:00.9]} 1... Nf6 {[%clk 0:02:57.5]} 2. c4 {[%clk 0:03:01]} 2...
b6 {[%clk 0:02:57.7]} 3. a3 {[%clk 0:03:00.7]} 3... Bb7 {[%clk 0:02:57]} 4. Nc3
{[%clk 0:03:01]} 4... e6 {[%clk 0:02:56]} 5. d5 {[%clk 0:03:01.3]} 5... exd5
{[%clk 0:02:44.7]} 6. cxd5 {[%clk 0:03:02.2]} 6... c6 {[%clk 0:02:43.2]} 7. g3
{[%clk 0:03:01.5]} 7... Nxd5 {[%clk 0:02:39]} 8. Nxd5 {[%clk 0:03:01.1]} 8...
cxd5 {[%clk 0:02:39.9]} 9. Bg2 {[%clk 0:03:02]} 9... Qc8 {[%clk 0:02:34.1]} 10.
Nh3 {[%clk 0:02:56.3]} 10... d4 {[%clk 0:02:30.7]} 11. Bxb7 {[%clk 0:02:49.9]}
11... Qxb7 {[%clk 0:02:31.6]} 12. O-O {[%clk 0:02:50.3]} 12... Nc6 {[%clk
0:02:30.2]} 13. b4 {[%clk 0:02:49.6]} 13... b5 {[%clk 0:02:28.7]} 14. Bb2 {[%clk
0:02:48.8]} 14... Be7 {[%clk 0:02:04.7]} 15. Rc1 {[%clk 0:02:46.9]} 15... Bf6
{[%clk 0:01:53.4]} 16. Nf4 {[%clk 0:02:45.8]} 16... Bg5 {[%clk 0:01:25]} 17.
Bxd4 {[%clk 0:02:38.8]} 17... Bxf4 {[%clk 0:01:25.2]} 18. gxf4 {[%clk
0:02:39.7]} 18... O-O {[%clk 0:01:23]} 19. Bb2 {[%clk 0:02:35.7]} 19... a5
{[%clk 0:01:20]} 20. Qb3 {[%clk 0:02:30.8]} 20... Rfe8 {[%clk 0:01:17]} 21. e3
{[%clk 0:02:27]} 21... Re6 {[%clk 0:01:16.3]} 22. f5 {[%clk 0:02:25.6]} 22...
Rh6 {[%clk 0:01:15.2]} 23. Rfd1 {[%clk 0:02:18.4]} 23... axb4 {[%clk 0:01:14.4]}
24. axb4 {[%clk 0:02:18.3]} 24... Ne7 {[%clk 0:01:13.6]} 25. Qd3 {[%clk
0:02:13.3]} 25... Qf3 {[%clk 0:01:10.7]} 26. e4 {[%clk 0:02:02.8]} 26... Qxd3
{[%clk 0:00:27.5]} 27. Rxd3 {[%clk 0:02:03.7]} 27... Nc6 {[%clk 0:00:26.7]} 28.
Rxd7 {[%clk 0:01:49.6]} 28... Nxb4 {[%clk 0:00:24.1]} 29. Rcc7 {[%clk 0:01:50]}
29... Rf8 {[%clk 0:00:22.7]} 30. Ba3 {[%clk 0:01:48.4]} 30... Na6 {[%clk
0:00:17.9]} 31. Ra7 {[%clk 0:01:42.9]} 31... b4 {[%clk 0:00:15.8]} 32. Bc1
{[%clk 0:01:30.4]} 32... Nc5 {[%clk 0:00:16.2]} 33. Bxh6 {[%clk 0:01:28.5]}
33... Nxd7 {[%clk 0:00:14.8]} 34. Rxd7 {[%clk 0:01:27.2]} 34... gxh6 {[%clk
0:00:15.7]} 35. Rb7 {[%clk 0:01:27.7]} 35... Re8 {[%clk 0:00:14.8]} 36. Rxb4
{[%clk 0:01:27.9]} 36... f6 {[%clk 0:00:14.6]} 37. Kg2 {[%clk 0:01:27.5]} 37...
Re7 {[%clk 0:00:14.3]} 38. Kf3 {[%clk 0:01:26.5]} 38... Kg7 {[%clk 0:00:15.2]}
39. Rb6 {[%clk 0:01:23.2]} 39... h5 {[%clk 0:00:15.4]} 40. h4 {[%clk 0:01:22.3]}
40... Rc7 {[%clk 0:00:14.6]} 41. Kf4 {[%clk 0:01:22.2]} 41... Rd7 {[%clk
0:00:12.3]} 42. f3 {[%clk 0:01:22.4]} 42... Re7 {[%clk 0:00:12.5]} 43. Rd6
{[%clk 0:01:21.4]} 43... Ra7 {[%clk 0:00:12.7]} 44. Rc6 {[%clk 0:01:20.5]} 44...
Rb7 {[%clk 0:00:12.8]} 45. Ke3 {[%clk 0:01:19.8]} 45... Rb3+ {[%clk 0:00:12.8]}
46. Kf4 {[%clk 0:01:19.7]} 46... Rb7 {[%clk 0:00:13]} 47. Kg3 {[%clk 0:01:19.8]}
47... Rb1 {[%clk 0:00:12.2]} 48. Rc7+ {[%clk 0:01:18.9]} 48... Kg8 {[%clk
0:00:12.8]} 49. Kf4 {[%clk 0:01:17.4]} 49... Rh1 {[%clk 0:00:12.4]} 50. Kg3
{[%clk 0:01:17.4]} 50... Rg1+ {[%clk 0:00:13]} 51. Kh2 {[%clk 0:01:14.6]} 51...
Rf1 {[%clk 0:00:13]} 52. Kg2 {[%clk 0:01:14.8]} 52... Re1 {[%clk 0:00:13.6]} 53.
Re7 {[%clk 0:01:10.9]} 53... Re2+ {[%clk 0:00:13.9]} 54. Kg3 {[%clk 0:01:10.8]}
54... Re1 {[%clk 0:00:14.3]} 55. f4 {[%clk 0:01:10.7]} 55... Rg1+ {[%clk
0:00:14.1]} 56. Kf3 {[%clk 0:01:09.9]} 56... Rh1 {[%clk 0:00:12.7]} 57. e5
{[%clk 0:01:09.7]} 57... Rh3+ {[%clk 0:00:10.9]} 58. Ke4 {[%clk 0:01:09.1]}
58... Rxh4 {[%clk 0:00:09.9]} 59. e6 {[%clk 0:00:59.8]} 59... Rh1 {[%clk
0:00:10]} 60. Ra7 {[%clk 0:00:59.3]} 60... Re1+ {[%clk 0:00:08.9]} 61. Kd5
{[%clk 0:00:59.3]} 61... h4 {[%clk 0:00:07.6]} 62. Kd6 {[%clk 0:00:57.1]} 62...
h3 {[%clk 0:00:06.6]} 63. Ra2 {[%clk 0:00:49.6]} 63... Kf8 {[%clk 0:00:02.9]}
64. Rh2 {[%clk 0:00:45.5]} 64... Rd1+ {[%clk 0:00:03]} 65. Kc5 {[%clk
0:00:44.4]} 65... Rd3 {[%clk 0:00:03.9]} 66. Kc4 {[%clk 0:00:43.6]} 66... Rf3
{[%clk 0:00:04.2]} 67. Kd5 {[%clk 0:00:43.7]} 67... Ke7 {[%clk 0:00:03.7]} 68.
Ke4 {[%clk 0:00:43.2]} 68... Ra3 {[%clk 0:00:02.6]} 69. Kd4 {[%clk 0:00:43.4]}
69... Rg3 {[%clk 0:00:02.5]} 70. Ke4 {[%clk 0:00:43.5]} 70... Rc3 {[%clk
0:00:02.6]} 71. Kd4 {[%clk 0:00:43.8]} 71... Rb3 {[%clk 0:00:03.1]} 72. Ke4
{[%clk 0:00:43.9]} 72... Ra3 {[%clk 0:00:03.6]} 73. Kd4 {[%clk 0:00:44]} 73...
Kd6 {[%clk 0:00:03.2]} 74. Ke4 {[%clk 0:00:44.2]} 74... Ra4+ {[%clk 0:00:03.3]}
75. Kf3 {[%clk 0:00:44.1]} 75... Ra5 {[%clk 0:00:03.7]} 76. Kg4 {[%clk
0:00:42.8]} 76... h5+ {[%clk 0:00:04.1]} 77. Kxh5 {[%clk 0:00:40.8]} 77... Rxf5+
{[%clk 0:00:05]} 78. Kg4 {[%clk 0:00:41.7]} 78... Rd5 {[%clk 0:00:04]} 79. f5
{[%clk 0:00:41.2]} 79... Rd4+ {[%clk 0:00:03]} 80. Kh5 {[%clk 0:00:41.3]} 80...
Rf4 {[%clk 0:00:01.9]} 81. Kg6 {[%clk 0:00:40.2]} 81... Ke7 {[%clk 0:00:02.8]}
82. Rxh3 {[%clk 0:00:40.2]} 82... Rg4+ {[%clk 0:00:03.5]} 83. Kh6 {[%clk
0:00:38.8]} 83... Rg5 {[%clk 0:00:03.6]} 84. Rh5 {[%clk 0:00:38.8]} 84... Rg1
{[%clk 0:00:03.3]} 85. Kh7 {[%clk 0:00:38.5]} 85... Rf1 {[%clk 0:00:02.9]} 86.
Kg8 {[%clk 0:00:35.9]} 86... Rg1+ {[%clk 0:00:03]} 87. Kh8 {[%clk 0:00:36.1]}
87... Rf1 {[%clk 0:00:03.4]} 88. Kh7 {[%clk 0:00:35.1]} 88... Rf2 {[%clk
0:00:02.2]} 89. Kh6 {[%clk 0:00:35.1]} 89... Rf1 {[%clk 0:00:02.6]} 90. Kh7
{[%clk 0:00:34]} 90... Rf2 {[%clk 0:00:03]} 91. Kh8 {[%clk 0:00:34.2]} 91... Rf1
{[%clk 0:00:03.2]} 92. Kg8 {[%clk 0:00:33.8]} 92... Rg1+ {[%clk 0:00:02.9]} 93.
Kh8 {[%clk 0:00:34]} 93... Rf1 {[%clk 0:00:03.8]} 1/2-1/2

[Event "*** SCC Grand Prix: Titled Tuesday Blitz"]
[Site "Chess.com"]
[Date "2020.07.14"]
[Round "7"]
[White "Shield12"]
[Black "wonderfultime"]
[Result "1/2-1/2"]
[WhiteElo "2862"]
[BlackElo "2965"]
[TimeControl "180+1"]
[EndTime "11:21:51 PDT"]
[Termination "Game drawn by repetition"]

1. e4 {[%clk 0:03:00.9]} 1... c5 {[%clk 0:02:59.1]} 2. Nf3 {[%clk 0:03:00.9]}
2... Nf6 {[%clk 0:02:58]} 3. e5 {[%clk 0:03:01.1]} 3... Nd5 {[%clk 0:02:58.5]}
4. Nc3 {[%clk 0:03:01.6]} 4... e6 {[%clk 0:02:59.1]} 5. Nxd5 {[%clk 0:03:01.5]}
5... exd5 {[%clk 0:03:00]} 6. d4 {[%clk 0:03:01.6]} 6... Nc6 {[%clk 0:03:00.6]}
7. dxc5 {[%clk 0:03:02.1]} 7... Bxc5 {[%clk 0:03:01.5]} 8. Bd3 {[%clk
0:03:02.5]} 8... d6 {[%clk 0:03:01.9]} 9. exd6 {[%clk 0:03:03.4]} 9... Qxd6
{[%clk 0:03:02.8]} 10. O-O {[%clk 0:03:03.6]} 10... O-O {[%clk 0:03:03.4]} 11.
Re1 {[%clk 0:03:02.4]} 11... h6 {[%clk 0:03:00.6]} 12. Be3 {[%clk 0:03:00.3]}
12... Bg4 {[%clk 0:02:50.7]} 13. h3 {[%clk 0:02:56.4]} 13... Bh5 {[%clk
0:02:48.5]} 14. c3 {[%clk 0:02:43.3]} 14... Rae8 {[%clk 0:02:42.9]} 15. Bxc5
{[%clk 0:02:37.3]} 15... Qxc5 {[%clk 0:02:43.8]} 16. Be2 {[%clk 0:02:35.3]}
16... Bg6 {[%clk 0:02:40.8]} 17. Qd2 {[%clk 0:02:32.3]} 17... Re7 {[%clk
0:02:36.9]} 18. Bf1 {[%clk 0:02:20.9]} 18... Be4 {[%clk 0:02:35]} 19. Nd4 {[%clk
0:02:17.5]} 19... Rfe8 {[%clk 0:02:33.2]} 20. Re3 {[%clk 0:02:15.1]} 20... Bg6
{[%clk 0:02:28.3]} 21. Rae1 {[%clk 0:02:12.7]} 21... Re4 {[%clk 0:02:25.8]} 22.
f3 {[%clk 0:02:00.7]} 22... Rxe3 {[%clk 0:02:09.6]} 23. Rxe3 {[%clk 0:02:01.6]}
23... Rc8 {[%clk 0:02:10]} 24. Nxc6 {[%clk 0:01:39.4]} 24... bxc6 {[%clk
0:01:59.5]} 25. Qd4 {[%clk 0:01:35.3]} 25... Qa5 {[%clk 0:01:54.2]} 26. a3
{[%clk 0:01:29.1]} 26... Rb8 {[%clk 0:01:53.7]} 27. c4 {[%clk 0:01:27]} 27...
dxc4 {[%clk 0:01:13.3]} 28. Bxc4 {[%clk 0:01:27.9]} 28... Rd8 {[%clk 0:01:13.9]}
29. Qe5 {[%clk 0:01:15.7]} 29... Qd2 {[%clk 0:00:59.4]} 30. Kh2 {[%clk
0:01:08.7]} 30... Kh7 {[%clk 0:00:57.3]} 31. Re2 {[%clk 0:01:03.8]} 31... Qc1
{[%clk 0:00:55.6]} 32. Bb3 {[%clk 0:00:48.1]} 32... c5 {[%clk 0:00:49.8]} 33.
Qc7 {[%clk 0:00:41.9]} 33... Rf8 {[%clk 0:00:46.5]} 34. Qd6 {[%clk 0:00:37.6]}
34... Rc8 {[%clk 0:00:38.4]} 35. Qd2 {[%clk 0:00:33.5]} 35... Qxd2 {[%clk
0:00:17]} 36. Rxd2 {[%clk 0:00:34.4]} 36... c4 {[%clk 0:00:17.7]} 37. Bd1 {[%clk
0:00:31.8]} 37... c3 {[%clk 0:00:17.4]} 38. bxc3 {[%clk 0:00:32.7]} 38... Rxc3
{[%clk 0:00:18.3]} 39. a4 {[%clk 0:00:32.6]} 39... Rc5 {[%clk 0:00:15.4]} 40.
Kg3 {[%clk 0:00:29.9]} 40... Bf5 {[%clk 0:00:12.9]} 41. Be2 {[%clk 0:00:28.1]}
41... Be6 {[%clk 0:00:10.4]} 42. Rd6 {[%clk 0:00:22.9]} 42... g5 {[%clk
0:00:08.8]} 43. Ra6 {[%clk 0:00:21.4]} 43... Rc7 {[%clk 0:00:09.3]} 44. h4
{[%clk 0:00:20.4]} 44... Kg7 {[%clk 0:00:08.5]} 45. hxg5 {[%clk 0:00:20.6]}
45... hxg5 {[%clk 0:00:09.4]} 46. Bd3 {[%clk 0:00:19.7]} 46... Kf6 {[%clk
0:00:08.5]} 47. Be4 {[%clk 0:00:19.4]} 47... Ke5 {[%clk 0:00:07.3]} 48. Ra5+
{[%clk 0:00:19.8]} 48... Kf6 {[%clk 0:00:07.6]} 49. Ra6 {[%clk 0:00:20.3]} 49...
Ke7 {[%clk 0:00:07.8]} 50. Kf2 {[%clk 0:00:18.7]} 50... f5 {[%clk 0:00:04.4]}
51. Bd3 {[%clk 0:00:18.4]} 51... f4 {[%clk 0:00:04.9]} 52. g3 {[%clk 0:00:17.7]}
52... Rd7 {[%clk 0:00:04.4]} 53. Be2 {[%clk 0:00:17.6]} 53... Rd2 {[%clk
0:00:03.6]} 54. Rxa7+ {[%clk 0:00:16.5]} 54... Kf6 {[%clk 0:00:04.2]} 55. gxf4
{[%clk 0:00:16]} 55... Bc4 {[%clk 0:00:04.4]} 56. fxg5+ {[%clk 0:00:15.8]} 56...
Kxg5 {[%clk 0:00:04.4]} 57. Re7 {[%clk 0:00:15.4]} 57... Ra2 {[%clk 0:00:04.8]}
58. a5 {[%clk 0:00:10.1]} 58... Bxe2 {[%clk 0:00:03.5]} 59. Rxe2 {[%clk
0:00:11]} 59... Rxa5 {[%clk 0:00:04]} 60. Kg3 {[%clk 0:00:11.4]} 60... Kf6
{[%clk 0:00:04.4]} 61. Kg4 {[%clk 0:00:11.2]} 61... Ra4+ {[%clk 0:00:04.8]} 62.
f4 {[%clk 0:00:11.5]} 62... Ra5 {[%clk 0:00:05.4]} 63. Rc2 {[%clk 0:00:11.5]}
63... Ra6 {[%clk 0:00:05.7]} 64. Rc5 {[%clk 0:00:11.8]} 64... Ra1 {[%clk
0:00:05.9]} 65. Rc6+ {[%clk 0:00:11.6]} 65... Kf7 {[%clk 0:00:06.4]} 66. Kg5
{[%clk 0:00:12.5]} 66... Ra5+ {[%clk 0:00:05.5]} 67. f5 {[%clk 0:00:12.7]} 67...
Ra7 {[%clk 0:00:06]} 68. Rh6 {[%clk 0:00:12.1]} 68... Ra1 {[%clk 0:00:06.2]} 69.
Rh7+ {[%clk 0:00:12.1]} 69... Kg8 {[%clk 0:00:06.4]} 70. Rd7 {[%clk 0:00:11.7]}
70... Ra6 {[%clk 0:00:06.5]} 71. Re7 {[%clk 0:00:12]} 71... Rb6 {[%clk
0:00:06.8]} 72. Re6 {[%clk 0:00:12]} 72... Rb7 {[%clk 0:00:03.6]} 73. Kg6 {[%clk
0:00:11.3]} 73... Rg7+ {[%clk 0:00:03.9]} 74. Kf6 {[%clk 0:00:11]} 74... Rf7+
{[%clk 0:00:04.5]} 75. Ke5 {[%clk 0:00:11.3]} 75... Ra7 {[%clk 0:00:05]} 76. Rh6
{[%clk 0:00:09.8]} 76... Kg7 {[%clk 0:00:05]} 77. Rg6+ {[%clk 0:00:10.2]} 77...
Kf7 {[%clk 0:00:05.2]} 78. Rh6 {[%clk 0:00:09.6]} 78... Ra5+ {[%clk 0:00:05.6]}
79. Kf4 {[%clk 0:00:09.6]} 79... Ra1 {[%clk 0:00:05.9]} 80. Rh7+ {[%clk
0:00:08.9]} 80... Kf6 {[%clk 0:00:05.9]} 81. Rh6+ {[%clk 0:00:09.4]} 81... Kf7
{[%clk 0:00:06.5]} 82. Rh7+ {[%clk 0:00:09.6]} 82... Kf6 {[%clk 0:00:06.9]} 83.
Rh6+ {[%clk 0:00:10.2]} 83... Kf7 {[%clk 0:00:07.3]} 1/2-1/2

[Event "*** SCC Grand Prix: Titled Tuesday Blitz"]
[Site "Chess.com"]
[Date "2020.07.14"]
[Round "7"]
[White "reniite"]
[Black "WonderChampion"]
[Result "1-0"]
[WhiteElo "1907"]
[BlackElo "1999"]
[TimeControl "180+1"]
[EndTime "11:21:53 PDT"]
[Termination "reniite won by checkmate"]

1. e4 {[%clk 0:03:00.9]} 1... c5 {[%clk 0:02:59.4]} 2. Nf3 {[%clk 0:02:59.2]}
2... g6 {[%clk 0:02:58.7]} 3. d4 {[%clk 0:03:00.1]} 3... cxd4 {[%clk 0:02:59.3]}
4. Nxd4 {[%clk 0:02:56]} 4... Nc6 {[%clk 0:02:58.9]} 5. Nc3 {[%clk 0:02:56.2]}
5... Bg7 {[%clk 0:02:57.7]} 6. Be3 {[%clk 0:02:55.8]} 6... Nf6 {[%clk
0:02:53.6]} 7. Be2 {[%clk 0:02:55.1]} 7... O-O {[%clk 0:02:52.6]} 8. O-O {[%clk
0:02:55.1]} 8... d6 {[%clk 0:02:50.4]} 9. Bf3 {[%clk 0:02:52.9]} 9... Bd7 {[%clk
0:02:47.6]} 10. Re1 {[%clk 0:02:43.8]} 10... a5 {[%clk 0:02:45.6]} 11. a4 {[%clk
0:02:42.9]} 11... Ne5 {[%clk 0:02:40.2]} 12. Be2 {[%clk 0:02:15.7]} 12... Rc8
{[%clk 0:02:39.1]} 13. Ndb5 {[%clk 0:02:02.7]} 13... Nc4 {[%clk 0:02:29.9]} 14.
Bxc4 {[%clk 0:01:13.4]} 14... Rxc4 {[%clk 0:02:30.8]} 15. b3 {[%clk 0:01:13.6]}
15... Nxe4 {[%clk 0:02:26.9]} 16. Nxe4 {[%clk 0:01:13]} 16... Rxe4 {[%clk
0:02:17.5]} 17. Rb1 {[%clk 0:00:59.7]} 17... Bc6 {[%clk 0:02:11.4]} 18. f3
{[%clk 0:00:58.4]} 18... Re6 {[%clk 0:02:08.9]} 19. Nd4 {[%clk 0:00:57.6]} 19...
Rf6 {[%clk 0:02:03.7]} 20. Qd2 {[%clk 0:00:57.5]} 20... e5 {[%clk 0:01:43.4]}
21. Nxc6 {[%clk 0:00:55.2]} 21... bxc6 {[%clk 0:01:43.1]} 22. Rbd1 {[%clk
0:00:54.9]} 22... Re6 {[%clk 0:01:41.8]} 23. Qf2 {[%clk 0:00:55.1]} 23... Qd7
{[%clk 0:01:37.2]} 24. Bb6 {[%clk 0:00:54.9]} 24... Ra8 {[%clk 0:01:36.5]} 25.
c4 {[%clk 0:00:53.6]} 25... f5 {[%clk 0:01:34.6]} 26. Qd2 {[%clk 0:00:48.2]}
26... Kf7 {[%clk 0:01:29.9]} 27. c5 {[%clk 0:00:45.5]} 27... d5 {[%clk
0:01:28.1]} 28. Bxa5 {[%clk 0:00:45.2]} 28... e4 {[%clk 0:01:26.7]} 29. fxe4
{[%clk 0:00:44.6]} 29... fxe4 {[%clk 0:01:27.5]} 30. Bc3 {[%clk 0:00:41.9]}
30... Bxc3 {[%clk 0:01:13.7]} 31. Qxc3 {[%clk 0:00:41.2]} 31... Qc7 {[%clk
0:01:13.7]} 32. Rf1+ {[%clk 0:00:40.7]} 32... Kg8 {[%clk 0:01:12.2]} 33. Rf6
{[%clk 0:00:33.9]} 33... Re7 {[%clk 0:01:09]} 34. Rdf1 {[%clk 0:00:33.3]} 34...
e3 {[%clk 0:01:07.3]} 35. Re1 {[%clk 0:00:25.4]} 35... e2 {[%clk 0:01:00.4]} 36.
Rf2 {[%clk 0:00:23.9]} 36... Rae8 {[%clk 0:00:55.3]} 37. a5 {[%clk 0:00:22.1]}
37... Re4 {[%clk 0:00:52.5]} 38. Qd3 {[%clk 0:00:20.4]} 38... Re3 {[%clk
0:00:50.4]} 39. Qd2 {[%clk 0:00:19.2]} 39... Qe7 {[%clk 0:00:47]} 40. b4 {[%clk
0:00:18.6]} 40... Re4 {[%clk 0:00:45]} 41. a6 {[%clk 0:00:18.1]} 41... d4 {[%clk
0:00:44.1]} 42. a7 {[%clk 0:00:15.1]} 42... Qxa7 {[%clk 0:00:42.9]} 43. Rfxe2
{[%clk 0:00:15.3]} 43... Rxe2 {[%clk 0:00:34.7]} 44. Rxe2 {[%clk 0:00:15.7]}
44... Qa1+ {[%clk 0:00:34.2]} 45. Kf2 {[%clk 0:00:16.3]} 45... Qa8 {[%clk
0:00:33.9]} 46. Rxe8+ {[%clk 0:00:14.7]} 46... Qxe8 {[%clk 0:00:34.8]} 47. Qxd4
{[%clk 0:00:15.4]} 47... Qf7+ {[%clk 0:00:35.1]} 48. Ke2 {[%clk 0:00:14.5]}
48... Qa2+ {[%clk 0:00:34.8]} 49. Kf3 {[%clk 0:00:15]} 49... Qb3+ {[%clk
0:00:34.1]} 50. Kf2 {[%clk 0:00:14.6]} 50... Qc2+ {[%clk 0:00:33.8]} 51. Kg3
{[%clk 0:00:15.1]} 51... Qb3+ {[%clk 0:00:33.1]} 52. Kf4 {[%clk 0:00:13.8]}
52... Qf7+ {[%clk 0:00:31.3]} 53. Ke3 {[%clk 0:00:13.9]} 53... Qb3+ {[%clk
0:00:30.5]} 54. Ke4 {[%clk 0:00:13.2]} 54... Qe6+ {[%clk 0:00:27.6]} 55. Kd3
{[%clk 0:00:11.8]} 55... Qb3+ {[%clk 0:00:27.1]} 56. Kd2 {[%clk 0:00:11.6]}
56... Qa2+ {[%clk 0:00:25.6]} 57. Kc3 {[%clk 0:00:11.5]} 57... Qxg2 {[%clk
0:00:24.9]} 58. Qd8+ {[%clk 0:00:10.9]} 58... Kg7 {[%clk 0:00:24.5]} 59. Qd7+
{[%clk 0:00:11.4]} 59... Kh6 {[%clk 0:00:24.3]} 60. Qd2+ {[%clk 0:00:10.6]}
60... Qxd2+ {[%clk 0:00:22.7]} 61. Kxd2 {[%clk 0:00:11.5]} 61... Kg5 {[%clk
0:00:22.4]} 62. b5 {[%clk 0:00:12]} 62... Kf6 {[%clk 0:00:19.9]} 63. b6 {[%clk
0:00:12.2]} 63... Ke6 {[%clk 0:00:19.5]} 64. b7 {[%clk 0:00:13.1]} 64... Kd5
{[%clk 0:00:20.4]} 65. b8=Q {[%clk 0:00:14]} 65... Kxc5 {[%clk 0:00:21.3]} 66.
Qg8 {[%clk 0:00:14.4]} 66... Kb4 {[%clk 0:00:20.7]} 67. Qxh7 {[%clk 0:00:15.3]}
67... c5 {[%clk 0:00:21.1]} 68. Qxg6 {[%clk 0:00:16.2]} 68... c4 {[%clk
0:00:21.5]} 69. Kc1 {[%clk 0:00:17.1]} 69... c3 {[%clk 0:00:21.3]} 70. h4 {[%clk
0:00:18]} 70... Kb3 {[%clk 0:00:21.4]} 71. h5 {[%clk 0:00:18.9]} 71... c2 {[%clk
0:00:21.1]} 72. h6 {[%clk 0:00:19.8]} 72... Ka2 {[%clk 0:00:21.6]} 73. h7 {[%clk
0:00:20.7]} 73... Ka1 {[%clk 0:00:22.5]} 74. h8=Q+ {[%clk 0:00:21.6]} 74... Ka2
{[%clk 0:00:23.4]} 75. Qa8+ {[%clk 0:00:21.4]} 75... Kb3 {[%clk 0:00:24.3]} 76.
Qb7+ {[%clk 0:00:21.8]} 76... Kc4 {[%clk 0:00:24.2]} 77. Qgc6+ {[%clk
0:00:22.1]} 77... Kd4 {[%clk 0:00:24.1]} 78. Qbd7+ {[%clk 0:00:23]} 78... Ke3
{[%clk 0:00:24.7]} 79. Qce6+ {[%clk 0:00:23.9]} 79... Kf2 {[%clk 0:00:24.7]} 80.
Qdf7+ {[%clk 0:00:24.8]} 80... Kg2 {[%clk 0:00:01.4]} 81. Qeg6+ {[%clk
0:00:25.7]} 81... Kh1 {[%clk 0:00:01.5]} 82. Qfh7# {[%clk 0:00:26.6]} 1-0